Workbook

Sheet Mittelhilfstabelle
A2: Stunde | B2: Wind | C2: Luftfeuchtigkeit | D2: Luftdruck | E2: Taupunkttemperatur | F2: Bewölkung | H2: Stunde | I2: Wind | J2: Luftfeuchtigkeit | K2: Luftdruck | L2: Taupunkttemperatur | M2: Bewölkung
A3: 00 | B3: 1 | C3: 90 | D3: 1019.2 | E3: 14 | F3: 8 | H3: 00 | I3: 1 | J3: 90 | K3: 1019.8 | L3: 11.3 | M3: 2
A4: 01 | B4: 1 | C4: 93 | D4: 1019.6 | E4: 14.1 | F4: 8 | H4: 01 | I4: 1 | J4: 91 | K4: 1020.2 | L4: 10.5 | M4: 2
A5: 02 | B5: 1 | C5: 92 | D5: 1020.1 | E5: 13.2 | F5: 8 | H5: 02 | I5: 1 | J5: 90 | K5: 1020.4 | L5: 10.1 | M5: 2
A6: 03 | B6: 1 | C6: 83 | D6: 1020.9 | E6: 10.5 | F6: 8 | H6: 03 | I6: 0 | J6: 91 | K6: 1020.2 | L6: 9.4 | M6: 1
A7: 04 | B7: 1 | C7: 79 | D7: 1021.1 | E7: 9.2 | F7: 7 | H7: 04 | I7: 1 | J7: 91 | K7: 1020.3 | L7: 9 | M7: 1
A8: 05 | B8: 1 | C8: 80 | D8: 1021.3 | E8: 8.4 | F8: 5 | H8: 05 | I8: 1 | J8: 92 | K8: 1020.5 | L8: 8.5 | M8: 1
A9: 06 | B9: 1 | C9: 82 | D9: 1021.9 | E9: 8.4 | F9: 2 | H9: 06 | I9: 1 | J9: 88 | K9: 1021 | L9: 9.2 | M9: 0
A10: 07 | B10: 1 | C10: 81 | D10: 1022.2 | E10: 9.4 | F10: 0 | H10: 07 | I10: 0 | J10: 89 | K10: 1021.5 | L10: 10.5 | M10: 0
A11: 08 | B11: 1 | C11: 70 | D11: 1022.6 | E11: 9 | F11: 5 | H11: 08 | I11: 1 | J11: 83 | K11: 1021.9 | L11: 12 | M11: 0
A12: 09 | B12: 1 | C12: 68 | D12: 1022.9 | E12: 9 | F12: 6 | H12: 09 | I12: 1 | J12: 74 | K12: 1021.8 | L12: 13 | M12: 0
A13: 10 | B13: 1 | C13: 65 | D13: 1023.2 | E13: 8.6 | F13: 5 | H13: 10 | I13: 1 | J13: 67 | K13: 1021.8 | L13: 13.6 | M13: 0
A14: 11 | B14: 1 | C14: 53 | D14: 1023.2 | E14: 6 | F14: 7 | H14: 11 | I14: 1 | J14: 57 | K14: 1021.6 | L14: 12.8 | M14: 1
A15: 12 | H15: 12 | I15: 1 | J15: 52 | K15: 1021.4 | L15: 11.8 | M15: 2
A16: 13 | H16: 13 | I16: 1 | J16: 47 | K16: 1021.2 | L16: 11.8 | M16: 3
A17: 14 | H17: 14 | I17: 1 | J17: 43 | K17: 1020.7 | L17: 10.2 | M17: 3
A18: 15 | H18: 15 | I18: 1 | J18: 43 | K18: 1020.4 | L18: 10.6 | M18: 4
A19: 16 | H19: 16 | I19: 1 | J19: 42 | K19: 1020.1 | L19: 9.7 | M19: 4
A20: 17 | H20: 17 | I20: 1 | J20: 46 | K20: 1020.1 | L20: 10.4 | M20: 4
A21: 18 | H21: 18 | I21: 0 | J21: 49 | K21: 1020.2 | L21: 10.2 | M21: 5
A22: 19 | H22: 19 | I22: 1 | J22: 60 | K22: 1020.4 | L22: 10.8 | M22: 4
A23: 20 | H23: 20 | I23: 1 | J23: 68 | K23: 1020.8 | L23: 10.9 | M23: 3
A24: 21 | H24: 21 | I24: 1 | J24: 73 | K24: 1021.1 | L24: 11 | M24: 1
A25: 22 | H25: 22 | I25: 1 | J25: 73 | K25: 1021.1 | L25: 10.7 | M25: 3
A26: 23 | H26: 23 | I26: 0 | J26: 79 | K26: 1021.2 | L26: 10.4 | M26: 3
A27: Mittel | B27: =ROUND(AVERAGE(B3:B26),1) -> 1 | C27: =ROUND(AVERAGE(C3:C26),1) -> 78 | D27: =ROUND(AVERAGE(D3:D26),1) -> 1021.5 | E27: =AVERAGE(E3:E26) -> 9.983333333 | F27: =ROUND(AVERAGE(F3:F26),1) -> 5.8 | H27: Mittel | I27: =ROUND(AVERAGE(I3:I26),1) -> 0.8 | J27: =ROUND(AVERAGE(J3:J26),1) -> 69.9 | K27: =ROUND(AVERAGE(K3:K26),1) -> 1020.8 | L27: =AVERAGE(L3:L26) -> 10.76666667 | M27: =ROUND(AVERAGE(M3:M26),1) -> 2
E29: 2013-09-01 | L29: 2013-08-29
A32: Stunde | B32: Wind | C32: Luftfeuchtigkeit | D32: Luftdruck | E32: Taupunkttemperatur | F32: Bewölkung | H32: Stunde | I32: Wind | J32: Luftfeuchtigkeit | K32: Luftdruck | L32: Taupunkttemperatur | M32: Bewölkung
A33: 00 | B33: 0 | C33: 85 | D33: 1021.2 | E33: 10 | F33: 3 | H33: 00 | I33: 0 | J33: 77 | K33: 1017.9 | L33: 11.4 | M33: 7
A34: 01 | B34: 0 | C34: 86 | D34: 1021 | E34: 10.1 | F34: 3 | H34: 01 | I34: 0 | J34: 75 | K34: 1017.8 | L34: 11.2 | M34: 7
A35: 02 | B35: 0 | C35: 86 | D35: 1020.9 | E35: 10 | F35: 3 | H35: 02 | I35: 0 | J35: 78 | K35: 1017.9 | L35: 11.4 | M35: 8
A36: 03 | B36: 0 | C36: 87 | D36: 1020.7 | E36: 9.8 | F36: 4 | H36: 03 | I36: 0 | J36: 80 | K36: 1017.5 | L36: 11.4 | M36: 7
A37: 04 | B37: 0 | C37: 88 | D37: 1020.4 | E37: 9.7 | F37: 3 | H37: 04 | I37: 0 | J37: 82 | K37: 1017.3 | L37: 11.3 | M37: 7
A38: 05 | B38: 0 | C38: 89 | D38: 1020.2 | E38: 9.2 | F38: 1 | H38: 05 | I38: 0 | J38: 86 | K38: 1017.4 | L38: 11.3 | M38: 6
A39: 06 | B39: 0 | C39: 88 | D39: 1020.3 | E39: 9.4 | F39: 1 | H39: 06 | I39: 0 | J39: 84 | K39: 1017.5 | L39: 11.6 | M39: 6
A40: 07 | B40: 0 | C40: 87 | D40: 1020.3 | E40: 10.9 | F40: 0 | H40: 07 | I40: 0 | J40: 84 | K40: 1017.7 | L40: 12.6 | M40: 6
A41: 08 | B41: 1 | C41: 80 | D41: 1020.3 | E41: 12.4 | F41: 0 | H41: 08 | I41: 1 | J41: 76 | K41: 1017.8 | L41: 13.3 | M41: 5
A42: 09 | B42: 1 | C42: 67 | D42: 1020 | E42: 13.7 | F42: 5 | H42: 09 | I42: 1 | J42: 70 | K42: 1017.9 | L42: 13.9 | M42: 4
A43: 10 | B43: 1 | C43: 63 | D43: 1020.1 | E43: 15 | F43: 5 | H43: 10 | I43: 1 | J43: 58 | K43: 1017.9 | L43: 12.9 | M43: 4
A44: 11 | B44: 1 | C44: 48 | D44: 1019.5 | E44: 12 | F44: 4 | H44: 11 | I44: 1 | J44: 57 | K44: 1017.6 | L44: 12.7 | M44: 7
A45: 12 | B45: 1 | C45: 49 | D45: 1019.2 | E45: 12.1 | F45: 4 | H45: 12 | I45: 1 | J45: 50 | K45: 1017.7 | L45: 13.5 | M45: 6
A46: 13 | B46: 1 | C46: 42 | D46: 1018.9 | E46: 10.5 | F46: 6 | H46: 13 | I46: 1 | J46: 53 | K46: 1017.4 | L46: 13 | M46: 6
A47: 14 | B47: 1 | C47: 45 | D47: 1018.4 | E47: 11.5 | F47: 5 | H47: 14 | I47: 1 | J47: 49 | K47: 1017.1 | L47: 12.7 | M47: 3
A48: 15 | B48: 0 | C48: 50 | D48: 1018 | E48: 12.4 | F48: 3 | H48: 15 | I48: 1 | J48: 47 | K48: 1016.7 | L48: 11.7 | M48: 5
A49: 16 | B49: 0 | C49: 50 | D49: 1017.9 | E49: 12.3 | F49: 3 | H49: 16 | I49: 1 | J49: 47 | K49: 1016.6 | L49: 11.6 | M49: 7
A50: 17 | B50: 0 | C50: 47 | D50: 1017.6 | E50: 11.1 | F50: 3 | H50: 17 | I50: 1 | J50: 51 | K50: 1016.7 | L50: 11.9 | M50: 8
A51: 18 | B51: 0 | C51: 54 | D51: 1017.6 | E51: 12 | F51: 5 | H51: 18 | I51: 1 | J51: 54 | K51: 1016.7 | L51: 12 | M51: 8
A52: 19 | B52: 1 | C52: 62 | D52: 1017.9 | E52: 12.3 | F52: 6 | H52: 19 | I52: 1 | J52: 69 | K52: 1017.3 | L52: 13.4 | M52: 8
A53: 20 | B53: 1 | C53: 65 | D53: 1018 | E53: 11.9 | F53: 6 | H53: 20 | I53: 0 | J53: 76 | K53: 1017.5 | L53: 13.8 | M53: 8
A54: 21 | B54: 0 | C54: 70 | D54: 1018 | E54: 11.5 | F54: 5 | H54: 21 | I54: 0 | J54: 77 | K54: 1017.8 | L54: 13.9 | M54: 8
A55: 22 | B55: 0 | C55: 75 | D55: 1018 | E55: 11.5 | F55: 6 | H55: 22 | I55: 2 | J55: 78 | K55: 1018.8 | L55: 13.9 | M55: 8
A56: 23 | B56: 1 | C56: 77 | D56: 1018 | E56: 11.5 | F56: 6 | H56: 23 | I56: 1 | J56: 83 | K56: 1018.9 | L56: 14 | M56: 8
A57: Mittel | B57: =ROUND(AVERAGE(B33:B56),1) -> 0.4 | C57: =ROUND(AVERAGE(C33:C56),1) -> 68.3 | D57: =ROUND(AVERAGE(D33:D56),1) -> 1019.3 | E57: =AVERAGE(E33:E56) -> 11.36666667 | F57: =ROUND(AVERAGE(F33:F56),1) -> 3.8 | H57: Mittel | I57: =ROUND(AVERAGE(I33:I56),1) -> 0.6 | J57: =ROUND(AVERAGE(J33:J56),1) -> 68.4 | K57: =ROUND(AVERAGE(K33:K56),1) -> 1017.6 | L57: =AVERAGE(L33:L56) -> 12.51666667 | M57: =ROUND(AVERAGE(M33:M56),1) -> 6.5
E59: 2013-08-30 | L59: 2013-08-31

Sheet Kurztabelle
A2: Wetterwarte: Köttewitz | L2: Monat: | M2: August | Y2: Jahr: | Z2: 2013
A4: Dat. | B4: TTT | C4: TxTx | D4: TnTn | E4: Tg | F4: Umin. | G4: UU | H4: NN | I4: RRRR | J4: Art | L4: sss | M4: PPPP | N4: eee | O4: fff | R4: Tage mit | V4: fk | W4: Summe
J5: * | O5: Bft | P5: SS | Q5: Art ( D ) | R5: RR | S5: Ge | T5: Bf6 | U5: Bf8 | V5: Bft | W5: Gewitter
A6: 01. | B6: 21.9 | C6: 28.7 | D6: 14.4 | E6: 13.3 | F6: 47 | G6: 72 | H6: 2.6 | I6: . | L6: 9.7 | M6: 1018 | N6: 16.1 | O6: 1 | V6: 2 | AA6: max >=30,0°C | AB6: max >=25,0°C | AC6: max <0,0°C | AE6: RR >=0,1 mm | AF6: RR >=1,0 mm | AG6: RR >=3,0 mm | AH6: RR >=10,0 mm
A7: 02. | B7: 25.4 | C7: 33.1 | D7: 16.6 | E7: 14.4 | F7: 36 | G7: 63 | H7: 0 | I7: . | L7: 12.3 | M7: 1014.9 | N7: 17.1 | O7: 0 | V7: 3 | AA7: =COUNTIF(C6:C15,">=30") -> 3 | AB7: =COUNTIF(C6:C15,">=25") -> 8 | AC7: =COUNTIF(C6:C15,"<0") -> 0 | AE7: =COUNTIF(I6:I15,">=0,1") -> 5 | AF7: =COUNTIF(I6:I15,">=1") -> 4 | AG7: =COUNTIF(I6:I15,">=3") -> 3 | AH7: =COUNTIF(I6:I15,">=10") -> 1
A8: 03. | B8: 26.5 | C8: 33.8 | D8: 19.2 | E8: 17.2 | F8: 36 | G8: 62 | H8: 2.2 | I8: . | L8: 8.8 | M8: 1014.6 | N8: 18 | O8: 1 | V8: 3 | AA8: =COUNTIF(C18:C27,">=30") -> 1 | AB8: =COUNTIF(C18:C27,">=25") -> 3 | AC8: =COUNTIF(C18:C27,"<0") -> 0 | AE8: =COUNTIF(I18:I27,">=0,1") -> 2 | AF8: =COUNTIF(I18:I27,">=1") -> 2 | AG8: =COUNTIF(I18:I27,">=3") -> 0 | AH8: =COUNTIF(I18:I27,">=10") -> 0
A9: 04. | B9: 22.2 | C9: 29.1 | D9: 17 | E9: 16.1 | F9: 59 | G9: 82 | H9: 5.3 | I9: 4.9 | J9: R | L9: 4.8 | M9: 1019 | N9: 18.9 | O9: 1 | R9: 1 | S9: 1 | V9: 3 | W9: 3 | AA9: =COUNTIF(C30:C40,">=30") -> 0 | AB9: =COUNTIF(C30:C40,">=25") -> 1 | AC9: =COUNTIF(C30:C40,"<0") -> 0 | AE9: =COUNTIF(I30:I40,">=0,1") -> 4 | AF9: =COUNTIF(I30:I40,">=1") -> 2 | AG9: =COUNTIF(I30:I40,">=3") -> 0 | AH9: =COUNTIF(I30:I40,">=10") -> 0
A10: 05. | B10: 20.9 | C10: 28.4 | D10: 15.1 | E10: 14.4 | F10: 53 | G10: 84 | H10: 4.5 | I10: . | L10: 6.2 | M10: 1018.4 | N10: 17.9 | O10: 1 | V10: 2
A11: 06. | B11: 24 | C11: 33.2 | D11: 17.3 | E11: 16.1 | F11: 32 | G11: 73 | H11: 4.3 | I11: 7.8 | J11: R | L11: 9.8 | M11: 1013.6 | N11: 18.3 | O11: 1 | R11: 1 | S11: 1 | V11: 5 | W11: 3 | AA11: min <0,0°C | AB11: min <0-10,0°C | AE11: rel.Lf. 14h >=70% | AG11: rel.Lf. 14h <=40%
A12: 07. | B12: 22.3 | C12: 29.7 | D12: 17 | E12: 16.7 | F12: 56 | G12: 83 | H12: 6.4 | I12: . | L12: 5.8 | M12: 1012.1 | N12: 18.9 | O12: 0 | V12: 2 | AA12: =COUNTIF(D6:D15,"<0") -> 0 | AB12: =COUNTIF(D6:D15,"<=-10") -> 0 | AE12: =COUNTIF(F6:F15,">=70") -> 1 | AG12: =COUNTIF(F6:F15,"<=40") -> 3
A13: 08. | B13: 22.7 | C13: 28 | D13: 17.7 | E13: 16.6 | F13: 58 | G13: 76 | H13: 6.9 | I13: 1.7 | J13: R | L13: 3.6 | M13: 1013.1 | N13: 18.3 | O13: 1 | R13: 1 | V13: 3 | AA13: =COUNTIF(D18:D27,"<0") -> 0 | AB13: =COUNTIF(D18:D27,"<=-10") -> 0 | AE13: =COUNTIF(F18:F27,">=70") -> 0 | AG13: =COUNTIF(F18:F27,"<=40") -> 4
A14: 09. | B14: 16.2 | C14: 19.7 | D14: 13.4 | E14: 12.7 | F14: 71 | G14: 90 | H14: 7.8 | I14: 12.2 | J14: R | L14: 0.1 | M14: 1019.5 | N14: 14.6 | O14: 0 | R14: 1 | V14: 3 | AA14: =COUNTIF(D30:D40,"<0") -> 0 | AB14: =COUNTIF(D30:D40,"<=-10") -> 0 | AE14: =COUNTIF(F30:F40,">=70") -> 0 | AG14: =COUNTIF(F30:F40,"<=40") -> 0
A15: 10. | B15: 17.3 | C15: 24.7 | D15: 11.6 | E15: 10.6 | F15: 50 | G15: 82 | H15: 4.6 | I15: 0.3 | J15: R | L15: 6.5 | M15: 1018.2 | N15: 13.8 | O15: 1 | R15: 1 | V15: 3
A16: Su | B16: =SUM(B6:B15) -> 219.4 | C16: =SUM(C6:C15) -> 288.4 | D16: =SUM(D6:D15) -> 159.3 | E16: =SUM(E6:E15) -> 148.1 | F16: XXX | G16: =SUM(G6:G15) -> 767 | H16: =SUM(H6:H15) -> 44.6 | I16: =SUM(I6:I15) -> 26.9 | J16: =SUM(K6:K15) -> 0 | L16: =SUM(L6:L15) -> 67.6 | M16: =SUM(M6:M15) -> 10161.4 | N16: =SUM(N6:N15) -> 171.9 | O16: =SUM(O6:O15) -> 7 | P16: =COUNT(P6:P15) -> 0 | Q16: X | R16: =SUM(R6:R15) -> 5 | S16: =SUM(S6:S15) -> 2 | T16: =SUM(T6:T15) -> 0 | U16: =SUM(U6:U15) -> 0 | V16: XXX | AA16: ohne Sonne | AB16: Son. 0,1-0,9 | AC16: Son. >=10,0 | AE16: Sch. >=1 cm | AF16: Sch. >=3 cm | AG16: Sch. >=10 cm
A17: Mi | B17: =AVERAGE(B6:B15) -> 21.94 | C17: =AVERAGE(C16/10) -> 28.84 | D17: =AVERAGE(D16/10) -> 15.93 | E17: =E16/10 -> 14.81 | F17: XXX | G17: =AVERAGE(G16/10) -> 76.7 | H17: =AVERAGE(H16/10) -> 4.46 | I17: XXXXX | J17: XX | L17: XXXX | M17: =AVERAGE(M16/10) -> 1016.14 | N17: =AVERAGE(N16/10) -> 17.19 | O17: =O16/10 -> 0.7 | P17: XXX | Q17: X | R17: XX | S17: XX | T17: XX | U17: XX | V17: =AVERAGE(V6:V15) -> 2.9 | AA17: =COUNTIF(L6:L15,".") -> 0 | AB17: =COUNTIF(L6:L15,"<1") -> 1 | AC17: =COUNTIF(L6:L15,">=10") -> 1 | AE17: =COUNTIF(P6:P15,">=1") -> 0 | AF17: =COUNTIF(P6:P15,">=3") -> 0 | AG17: =COUNTIF(P6:P15,">=10") -> 0
A18: 11. | B18: 16.4 | C18: 21.1 | D18: 11.1 | E18: 10 | F18: 48 | G18: 74 | H18: 3.9 | I18: . | L18: 6.4 | M18: 1017.4 | N18: 11.3 | O18: 1 | V18: 4 | AA18: =COUNTIF(L18:L27,".") -> 0 | AB18: =COUNTIF(L18:L27,"<1") -> 1 | AC18: =COUNTIF(L18:L27,">=10") -> 1 | AE18: =COUNTIF(P18:P27,">=1") -> 0 | AF18: =COUNTIF(P18:P27,">=3") -> 0 | AG18: =COUNTIF(P18:P27,">=10") -> 0
A19: 12. | B19: 17.4 | C19: 23.8 | D19: 9.2 | E19: 8.3 | F19: 46 | G19: 70 | H19: 3.6 | I19: . | L19: 5.5 | M19: 1015.4 | N19: 11.5 | O19: 1 | V19: 3 | AA19: =COUNTIF(L30:L40,".") -> 0 | AB19: =COUNTIF(L30:L40,"<1") -> 1 | AC19: =COUNTIF(L30:L40,">=10") -> 0 | AE19: =COUNTIF(P30:P40,">=1") -> 0 | AF19: =COUNTIF(P30:P40,">=3") -> 0 | AG19: =COUNTIF(P30:P40,">=10") -> 0
A20: 13. | B20: 15.9 | C20: 20.8 | D20: 12 | E20: 10.6 | F20: 48 | G20: 76 | H20: 5.8 | I20: 0 | L20: 3.5 | M20: 1015.6 | N20: 11.6 | O20: 1 | V20: 3
A21: 14. | B21: 15.1 | C21: 20.7 | D21: 10.4 | E21: 9.4 | F21: 46 | G21: 70 | H21: 3.5 | I21: . | L21: 6 | M21: 1021.2 | N21: 9.3 | O21: 1 | V21: 3 | AA21: Max TT | AB21: Max TxTx | AC21: Min TgTg | AE21: Max RR
A22: 15. | B22: 15.7 | C22: 23 | D22: 7.1 | E22: 9.6 | F22: 39 | G22: 67 | H22: 2.8 | I22: . | L22: 7.2 | M22: 1023.1 | N22: 8.7 | O22: 1 | V22: 2 | AA22: =MAX(B6:B15,B18:B27,B30:B40) -> 26.5 | AB22: =MAX(C6:C15,C18:C27,C30:C40) -> 33.8 | AC22: =MIN(E6:E15,E18:E27,E30:E40) -> 7.8 | AE22: =MAX(I6:I15,I18:I27,I30:I40) -> 12.2
A23: 16. | B23: 18.6 | C23: 26.1 | D23: 10.9 | E23: 9.4 | F23: 35 | G23: 60 | H23: 2.5 | I23: . | L23: 10.5 | M23: 1020.2 | N23: 9.8 | O23: 1 | V23: 3 | AA23: Min TT | AB23: Min TnTn | AC23: Min U14 | AE23: Max SS
A24: 17. | B24: 20.9 | C24: 29.2 | D24: 12.4 | E24: 10.6 | F24: 37 | G24: 62 | H24: 2.5 | I24: . | L24: 8.3 | M24: 1015.1 | N24: 12.6 | O24: 1 | V24: 3 | AA24: =MIN(B6:B15,B18:B27,B30:B40) -> 14.7 | AB24: =MIN(D6:D15,D18:D27,D30:D40) -> 7.1 | AC24: =MIN(F6:F15,F18:F27,F30:F40) -> 32 | AE24: =MAX(P6:P15,P18:P27,P30:P40) -> 0
A25: 18. | B25: 22.3 | C25: 30.4 | D25: 15.8 | E25: 14.4 | F25: 38 | G25: 63 | H25: 6.3 | I25: 0 | L25: 3.6 | M25: 1013.7 | N25: 14.4 | O25: 1 | V25: 4
A26: 19. | B26: 19.7 | C26: 22.4 | D26: 17.1 | E26: 16.2 | F26: 49 | G26: 75 | H26: 7.6 | I26: 1.8 | J26: R | L26: 0 | M26: 1014.7 | N26: 15.1 | O26: 1 | R26: 1 | V26: 3
A27: 20. | B27: 15.4 | C27: 20.8 | D27: 11.9 | E27: 11.1 | F27: 63 | G27: 85 | H27: 6.7 | I27: 1.1 | J27: R | L27: 1.3 | M27: 1024.1 | N27: 12.9 | O27: 1 | R27: 1 | V27: 4
A28: Su | B28: =SUM(B18:B27) -> 177.4 | C28: =SUM(C18:C27) -> 238.3 | D28: =SUM(D18:D27) -> 117.9 | E28: =SUM(E18:E27) -> 109.6 | F28: XXX | G28: =SUM(G18:G27) -> 702 | H28: =SUM(H18:H27) -> 45.2 | I28: =SUM(I18:I27) -> 2.9 | J28: =SUM(K18:K27) -> 0 | L28: =SUM(L18:L27) -> 52.3 | M28: =SUM(M18:M27) -> 10180.5 | N28: =SUM(N18:N27) -> 117.2 | O28: =SUM(O18:O27) -> 10 | P28: =COUNT(P18:P27) -> 0 | Q28: X | R28: =SUM(R18:R27) -> 2 | S28: =SUM(S18:S27) -> 0 | T28: =SUM(T18:T27) -> 0 | U28: =SUM(U18:U27) -> 0 | V28: XXX
A29: Mi | B29: =AVERAGE(B18:B27) -> 17.74 | C29: =AVERAGE(C28/10) -> 23.83 | D29: =AVERAGE(D28/10) -> 11.79 | E29: =AVERAGE(E28/10) -> 10.96 | F29: XXX | G29: =AVERAGE(G28/10) -> 70.2 | H29: =AVERAGE(H28/10) -> 4.52 | I29: XXXXX | J29: XX | L29: XXXX | M29: =AVERAGE(M28/10) -> 1018.05 | N29: =AVERAGE(N28/10) -> 11.72 | O29: =O28/10 -> 1 | P29: XXX | Q29: X | R29: XX | S29: XX | T29: XX | U29: XX | V29: =AVERAGE(V18:V27) -> 3.2
A30: 21. | B30: 15.4 | C30: 22.3 | D30: 10.3 | E30: 8.9 | F30: 46 | G30: 76 | H30: 4.9 | I30: . | L30: 4.8 | M30: 1026.1 | N30: 10.8 | O30: 1 | V30: 3
A31: 22. | B31: 16 | C31: 23.6 | D31: 8.6 | E31: 7.8 | F31: 44 | G31: 72 | H31: 3.9 | I31: . | L31: 8.4 | M31: 1021.4 | N31: 10.2 | O31: 1 | V31: 3
A32: 23. | B32: 15.8 | C32: 22.4 | D32: 10.1 | E32: 9.1 | F32: 53 | G32: 83 | H32: 6.8 | I32: 1.3 | J32: R | L32: 0.6 | M32: 1019.6 | N32: 12.8 | O32: 1 | R32: 1 | V32: 3
A33: 24. | B33: 17.7 | C33: 24.8 | D33: 11.2 | E33: 10.6 | F33: 45 | G33: 75 | H33: 4.1 | I33: . | L33: 6.3 | M33: 1015.5 | N33: 12.7 | O33: 1 | V33: 3
A34: 25. | B34: 16.7 | C34: 23.8 | D34: 12 | E34: 11.1 | F34: 45 | G34: 78 | H34: 6.3 | I34: 2 | J34: R | L34: 4.2 | M34: 1012.3 | N34: 12.5 | O34: 0 | R34: 1 | V34: 3
A35: 26. | B35: 16.1 | C35: 21.9 | D35: 11.1 | E35: 10.6 | F35: 47 | G35: 77 | H35: 5.8 | I35: . | L35: 1.7 | M35: 1015.3 | N35: 11.7 | O35: 1 | V35: 4
A36: 27. | B36: 14.7 | C36: 21.7 | D36: 8.2 | E36: 7.8 | F36: 54 | G36: 77 | H36: 4.5 | I36: . | L36: 3.5 | M36: 1015.5 | N36: 10.4 | O36: 1 | V36: 3
A37: 28. | B37: 16.2 | C37: 22.1 | D37: 11.9 | E37: 11.7 | F37: 56 | G37: 78 | H37: 6.5 | I37: 0.2 | J37: R | L37: 3.4 | M37: 1016.6 | N37: 12.1 | O37: 1 | R37: 1 | V37: 2
A38: 29. | B38: 16.9 | C38: 24.4 | D38: 9.7 | E38: 8.3 | F38: 41 | G38: 70 | H38: 2 | I38: . | L38: 9.3 | M38: 1020.8 | N38: 10.8 | O38: 1 | V38: 3
A39: 30. | B39: 17.9 | C39: 25.1 | D39: 10.8 | E39: 10 | F39: 41 | G39: 68 | H39: 3.8 | I39: . | L39: 3.6 | M39: 1019.3 | N39: 11.4 | O39: 0 | V39: 2
A40: 31. | B40: 18.7 | C40: 24.3 | D40: 13.4 | E40: 12.2 | F40: 45 | G40: 68 | H40: 6.5 | I40: 0.6 | J40: R | L40: 5 | M40: 1017.6 | N40: 12.5 | O40: 1 | R40: 1 | V40: 4
A41: Su | B41: =SUM(B30:B40) -> 182.1 | C41: =SUM(C30:C40) -> 256.4 | D41: =SUM(D30:D40) -> 117.3 | E41: =SUM(E30:E40) -> 108.1 | F41: XXX | G41: =SUM(G30:G40) -> 822 | H41: =SUM(H30:H40) -> 55.1 | I41: =SUM(I30:I40) -> 4.1 | J41: =SUM(K30:K40) -> 0 | L41: =SUM(L30:L40) -> 50.8 | M41: =SUM(M30:M40) -> 11200 | N41: =SUM(N30:N40) -> 127.9 | O41: =SUM(O30:O40) -> 9 | P41: =COUNT(P30:P40) -> 0 | Q41: X | R41: =SUM(R30:R40) -> 4 | S41: =SUM(S30:S40) -> 0 | T41: =SUM(T30:T40) -> 0 | U41: =SUM(U30:U40) -> 0 | V41: XXX
A42: Mi | B42: =AVERAGE(B30:B40) -> 16.55454545 | C42: =AVERAGE(C41/11) -> 23.30909091 | D42: 10.66363636 | E42: 9.827272727 | F42: XXX | G42: =AVERAGE(G41/10) -> 82.2 | H42: =AVERAGE(H41/11) -> 5.009090909 | I42: XXXXX | J42: XX | L42: XXXX | M42: =AVERAGE(M41/11) -> 1018.181818 | N42: =AVERAGE(N41/11) -> 11.62727273 | O42: 0.8181818182 | P42: XXX | Q42: X | R42: XX | S42: XX | T42: XX | U42: XX | V42: =AVERAGE(V30:V40) -> 3
A43: MSu | B43: =SUM(B16+B28+B41) -> 578.9 | C43: =SUM(C16+C28+C41) -> 783.1 | D43: =SUM(D16+D28+D41) -> 394.5 | E43: =SUM(E16+E28+E41) -> 365.8 | F43: XXX | G43: =SUM(G16+G28+G41) -> 2291 | H43: =SUM(H16+H28+H41) -> 144.9 | I43: =SUM(I16+I28+I41) -> 33.9 | J43: =SUM(J16+J28+J41) -> 0 | L43: =SUM(L16+L28+L41) -> 170.7 | M43: =SUM(M16+M28+M41) -> 31541.9 | N43: =SUM(N16+N28+N41) -> 417 | O43: XXX | P43: =SUM(P16+P28+P41) -> 0 | Q43: X | R43: =SUM(R16+R28+R41) -> 11 | S43: =SUM(S16+S28+S41) -> 2 | T43: =SUM(T16+T28+T41) -> 0 | U43: =SUM(U16+U28+U41) -> 0 | V43: XXX | W43: 6
A44: MMi | B44: =AVERAGE(B6:B15,B18:B27,B30:B40) -> 18.67419355 | C44: =AVERAGE(C43/31) -> 25.26129032 | D44: =AVERAGE(D43/31) -> 12.72580645 | E44: 11.8 | F44: XXX | G44: =AVERAGE(G43/30) -> 76.36666667 | H44: =AVERAGE(H43/31) -> 4.674193548 | I44: XXXXX | J44: XX | L44: XXXX | M44: =AVERAGE(M43/31) -> 1017.480645 | N44: =AVERAGE(N43/31) -> 13.4516129 | O44: =AVERAGE(O17,O29,O42) -> 0.8393939394 | P44: XXX | Q44: X | R44: XX | S44: XX | T44: XX | U44: XX | V44: =AVERAGE(V17,V29,V42) -> 3.033333333
B46: Norm | C46: % v N.- | D46: Abw. | E46: Zahl der Tage | L46: Niederschlag mm | P46: Sonnensch.-dauer Std
B47: wert | C47: wert | D47: K | E47: Max.d.Lufttemp.°C | L47: >/= 0,1 | O47: =SUM(AE7:AE9) -> 11 | P47: ohne Sonne | V47: 1
A48: TTT | B48: 17.9 | C48: XXXX | D48: =SUM(B44-B48) -> 0.7741935484 | E48: Tropentag/Hitzetag | I48: =SUM(AA7:AA9) -> 4 | L48: >/= 1,0 | O48: =SUM(AF7:AF9) -> 8 | P48: 0,1 bis 0,9 | V48: 1
A49: RRR | B49: 86 | C49: =SUM(I43*100/B49) -> 39.41860465 | D49: XXXX | E49: Sommertag | I49: =SUM(AB7:AB9) -> 12 | L49: >/= 3,0 | O49: =SUM(AG7:AG9) -> 3 | P49: >/= 10,0 | V49: =SUM(AC17:AC19) -> 2
A50: sss | B50: 208 | C50: =SUM(L43*100/B50) -> 82.06730769 | D50: XXXX | E50: Eistag | I50: =SUM(AC7:AC9) -> 0 | L50: >/=10,0 | O50: =SUM(AH7:AH9) -> 1 | P50: Schneedecke cm
A51: astr. | D51: XXXX | E51: Min.d.Lufttemp.°C | L51: >/= 20,0 | O51: 0 | P51: >/= 1 | V51: =SUM(AE17:AE19) -> 0
A52: mgl. | B52: 446 | C52: =SUM(L43*100/B52) -> 38.2735426 | D52: XXXX | E52: Frosttag | I52: =SUM(AA12:AA14) -> 0 | L52: Rel. Luftfeuchte 14 Uhr | P52: >/= 3 | V52: =SUM(AF17:AF19) -> 0
A53: sss | D53: XXXX | E53: starker Eistag | I53: =SUM(AB12:AB14) -> 0 | L53: >/=70% | O53: =SUM(AE12:AE14) -> 1 | P53: >/= 10 | V53: =SUM(AG17:AG19) -> 0
L54: </=40% | O54: =SUM(AG12:AG14) -> 7

Sheet Sichtst.
E1: Sichtweitenstatistik
B5: Wetterstation: Köttewitz | F5: Monat: | G5: August | K5: Jahr: | L5: 2013
A7: Dat. | B7: Nebeldauer | C7: Nebel | D7: Dunst | E7: Sicht | F7: Sicht | G7: Sicht | H7: Sicht
B8: in St. u. Min. | E8: mittel | F8: normal | G8: gut | H8: sehr gut
A9: 01. | B9: - | C9: =IF(R9=1,1,"-") -> - | D9: - | E9: - | F9: 1 | G9: 1 | H9: - | N9: =IF(ISNUMBER(B9),B9*24," ") ->  | O9: =IF(ISNUMBER(N9),IF(N9<1,1," ")," ") ->  | P9: =IF(ISNUMBER(N9),IF(N9<8,2," ")," ") ->  | Q9: =IF(ISNUMBER(N9),IF(N9<24,3," ")," ") ->  | R9: =MIN(O9:Q9) -> 0
A10: 02. | B10: - | C10: - | D10: - | E10: - | F10: 1 | G10: 1 | H10: - | R10: 0
A11: 03. | B11: - | C11: - | D11: - | E11: - | F11: 1 | G11: - | H11: - | R11: 0
A12: 04. | B12: - | C12: - | D12: - | E12: 1 | F12: 1 | G12: 1 | H12: - | R12: 0
A13: 05. | B13: - | C13: - | D13: - | E13: 1 | F13: 1 | G13: - | H13: - | R13: 0
A14: 06. | B14: - | C14: - | D14: - | E14: 1 | F14: 1 | G14: - | H14: - | R14: 0
A15: 07. | B15: - | C15: - | D15: - | E15: 1 | F15: 1 | G15: 1 | H15: - | R15: 0
A16: 08. | B16: - | C16: - | D16: - | E16: - | F16: 1 | G16: 1 | H16: - | R16: 0
A17: 09. | B17: - | C17: - | D17: - | E17: 1 | F17: 1 | G17: - | H17: - | R17: 0
A18: 10. | B18: - | C18: - | D18: - | E18: 1 | F18: 1 | G18: - | H18: - | R18: 0
A19: 11. | B19: - | C19: - | D19: - | E19: - | F19: 1 | G19: 1 | H19: - | R19: 0
A20: 12. | B20: - | C20: - | D20: - | E20: - | F20: 1 | G20: 1 | H20: - | R20: 0
A21: 13. | B21: - | C21: - | D21: - | E21: 1 | F21: 1 | G21: - | H21: - | R21: 0
A22: 14. | B22: - | C22: - | D22: - | E22: - | F22: 1 | G22: 1 | H22: - | R22: 0
A23: 15. | B23: - | C23: - | D23: - | E23: - | F23: 1 | G23: 1 | H23: - | R23: 0
A24: 16. | B24: - | C24: - | D24: - | E24: - | F24: 1 | G24: - | H24: - | R24: 0
A25: 17. | B25: - | C25: - | D25: - | E25: - | F25: 1 | G25: - | H25: - | R25: 0
A26: 18. | B26: - | C26: - | D26: - | E26: - | F26: 1 | G26: - | H26: - | R26: 0
A27: 19. | B27: - | C27: - | D27: - | E27: - | F27: 1 | G27: - | H27: - | R27: 0
A28: 20. | B28: - | C28: - | D28: 1 | E28: 1 | F28: 1 | G28: - | H28: - | R28: 0
A29: 21. | B29: - | C29: - | D29: - | E29: - | F29: 1 | G29: - | H29: - | R29: 0
A30: 22. | B30: - | C30: - | D30: - | E30: - | F30: 1 | G30: - | H30: - | R30: 0
A31: 23. | B31: - | C31: - | D31: - | E31: - | F31: 1 | G31: - | H31: - | R31: 0
A32: 24. | B32: - | C32: - | D32: - | E32: - | F32: 1 | G32: - | H32: - | R32: 0
A33: 25. | B33: - | C33: - | D33: - | E33: 1 | F33: 1 | G33: - | H33: - | R33: 0
A34: 26. | B34: - | C34: - | D34: - | E34: - | F34: 1 | G34: - | H34: - | R34: 0
A35: 27. | B35: - | C35: - | D35: - | E35: - | F35: 1 | G35: - | H35: - | R35: 0
A36: 28. | B36: - | C36: - | D36: - | E36: - | F36: 1 | G36: - | H36: - | R36: 0
A37: 29. | B37: - | C37: - | D37: - | E37: - | F37: 1 | G37: 1 | H37: - | R37: 0
A38: 30. | B38: - | C38: - | D38: - | E38: - | F38: 1 | G38: - | H38: - | R38: 0
A39: 31. | B39: - | C39: - | D39: - | E39: 1 | F39: 1 | G39: - | H39: - | R39: 0
A40: Su. | B40: XXXXXXXXX | C40: =SUM(C9:C39) -> 0 | D40: =SUM(D9:D39) -> 1 | E40: 10 | F40: 31 | G40: 10 | H40: 0
B42: Anzahl der Nebeltage : | E42: =SUM(C40) -> 0
B43: Anzahl der Tage Sicht >= 50 km : | E43: =SUM(G40) -> 10

Sheet Monatsdiagramm
A1: Klimadiagramm | C1: Wetterstation Köttewitz | I1: (213 m ü. NHN)
A3: August 2013
C5: aktuell | D5: langj. Mittel | E5: Abw. vom lj. Mittel
B6: höchste Temperatur (°C): | C6: =MAX('Daten für Diagr.'!C2:C29) -> 33.8 | D6: am | E6: 2013-08-03
B7: mittlere Temperatur (°C): | C7: ='Daten für Diagr.'!B33 -> 18.67419355 | D7: =Kurztabelle!B48 -> 17.9 | E7: =C7-D7 -> 0.7741935484 | F7: K
B8: tiefste Temperatur (°C): | C8: =MIN('Daten für Diagr.'!D2:D29) -> 7.1 | D8: am | E8: 2013-08-15
B9: Niederschlagshöhe (mm): | C9: =Kurztabelle!I43 -> 33.9 | D9: =Kurztabelle!B49 -> 86 | E9: =100/D9*C9 -> 39.41860465 | F9: %
B10: Sonnenscheindauer (Std.)*: | C10: =Kurztabelle!L43 -> 170.7 | D10: =Kurztabelle!B50 -> 208 | E10: =100/D10*C10 -> 82.06730769 | F10: %
A66: *Die Wetterstation kann, durch geographische Hindernisse, nicht die maximal mögliche Sonnenscheindauer aufzeichnen. Es gilt ein Übergangsprozentsatz von: Nov - Feb 50 %; Mär & Okt 65 %; Apr & Sep 80 %; Mai - August 90 %.
A67: Diese Werte entsprechend annähernd 100 % (Normalwert Köttewitz). Nach 10 Jahren erfolgt die Umstellung des Prozentsatzes nach der örtlichen Aufzeichnung.

Sheet Daten für Diagr.
B1: Td | C1: Tmax | D1: Tmin | E1: RR | F1: Schnee | G1: Sonne | H1: Luftdr. | I1: MWT | J1: GWL | K1: Name | L1: Sonstiges
A2: 2013-08-01 | B2: 21.9 | C2: 28.7 | D2: 14.4 | G2: 9.7 | H2: 1016.1 | I2: 18.05 | J2: SWa | L2: Mäßig schwül.
A3: 2013-08-02 | B3: 25.4 | C3: 33.1 | D3: 16.6 | G3: 12.3 | H3: 1014.9 | I3: 18.05 | L3: Stark schwül. Beginn der Pflaumenernte.
A4: 2013-08-03 | B4: 26.5 | C4: 33.8 | D4: 19.2 | G4: 8.8 | H4: 1014.6 | I4: 18.05 | J4: TrW | K4: T Dirk | L4: Stark schwül.
A5: 2013-08-04 | B5: 22.2 | C5: 29.1 | D5: 17 | E5: 4.9 | G5: 4.8 | H5: 1019 | I5: 18.05 | L5: Extrem schwül. | N5: Tropennacht (20,1 °C)
A6: 2013-08-05 | B6: 20.9 | C6: 28.4 | D6: 15.1 | G6: 6.2 | H6: 1018.4 | I6: 18.05 | J6: SWz | K6: H Beibhinn | L6: Extrem schwül.
A7: 2013-08-06 | B7: 24 | C7: 33.2 | D7: 17.3 | E7: 7.8 | G7: 9.8 | H7: 1013.6 | I7: 18.05 | L7: Extrem schwül.
A8: 2013-08-07 | B8: 22.3 | C8: 29.7 | D8: 17 | G8: 5.8 | H8: 1012.1 | I8: 18.05 | J8: U | K8: T Franz | L8: Stark schwül.
A9: 2013-08-08 | B9: 22.7 | C9: 28 | D9: 17.7 | E9: 1.7 | G9: 3.6 | H9: 1013.1 | I9: 18 | J9: Wz | L9: Stark schwül. Tropennacht (20,2 °C).
A10: 2013-08-09 | B10: 16.2 | C10: 19.7 | D10: 13.4 | E10: 12.2 | G10: 0.1 | H10: 1019.5 | I10: 18 | L10: Leicht schwül.
A11: 2013-08-10 | B11: 17.3 | C11: 24.7 | D11: 11.6 | E11: 0.3 | G11: 6.5 | H11: 1018.2 | I11: 18 | J11: Wa | K11: H Cornelia | L11: Mäßig schwül.
A12: 2013-08-11 | B12: 16.4 | C12: 21.1 | D12: 11.1 | G12: 6.4 | H12: 1017.4 | I12: 18
A13: 2013-08-12 | B13: 17.4 | C13: 23.8 | D13: 9.2 | G13: 5.5 | H13: 1015.4 | I13: 18
A14: 2013-08-13 | B14: 15.9 | C14: 20.8 | D14: 12 | G14: 3.5 | H14: 1015.6 | I14: 17.95
A15: 2013-08-14 | B15: 15.1 | C15: 20.7 | D15: 10.4 | G15: 6 | H15: 1021.2 | I15: 17.95
A16: 2013-08-15 | B16: 15.7 | C16: 23 | D16: 7.1 | G16: 7.2 | H16: 1023.1 | I16: 17.9
A17: 2013-08-16 | B17: 18.6 | C17: 26.1 | D17: 10.9 | G17: 10.5 | H17: 1020.2 | I17: 17.9
A18: 2013-08-17 | B18: 20.9 | C18: 29.2 | D18: 12.4 | G18: 8.3 | H18: 1015.1 | I18: 17.9 | L18: Leicht schwül.
A19: 2013-08-18 | B19: 22.3 | C19: 30.4 | D19: 15.8 | G19: 3.6 | H19: 1013.7 | I19: 17.85 | L19: Mäßig schwül.
A20: 2013-08-19 | B20: 19.7 | C20: 22.4 | D20: 17.1 | E20: 1.8 | G20: 0 | H20: 1014.7 | I20: 17.85 | L20: Leicht schwül.
A21: 2013-08-20 | B21: 15.4 | C21: 20.8 | D21: 11.9 | E21: 1.1 | G21: 1.3 | H21: 1024.1 | I21: 17.8 | J21: HNa | K21: H Fortuna | L21: Beginn der Apfelernte.
A22: 2013-08-21 | B22: 15.4 | C22: 22.3 | D22: 10.3 | G22: 4.8 | H22: 1026.1 | I22: 17.8
A23: 2013-08-22 | B23: 16 | C23: 23.6 | D23: 8.6 | G23: 8.4 | H23: 1021.4 | I23: 17.75
A24: 2013-08-23 | B24: 15.8 | C24: 22.4 | D24: 10.1 | G24: 0.6 | H24: 1019.6 | I24: 17.75 | J24: HNFz
A25: 2013-08-24 | B25: 17.7 | C25: 24.8 | D25: 11.2 | G25: 6.3 | H25: 1015.5 | I25: 17.7
A26: 2013-08-25 | B26: 16.7 | C26: 23.8 | D26: 12 | E26: 2 | G26: 4.2 | H26: 1012.3 | I26: 17.7
A27: 2013-08-26 | B27: 16.1 | C27: 21.9 | D27: 11.1 | G27: 1.7 | H27: 1015.3 | I27: 17.65
A28: 2013-08-27 | B28: 14.7 | C28: 21.7 | D28: 8.2 | G28: 3.5 | H28: 1015.5 | I28: 17.65 | J28: NEz
A29: 2013-08-28 | B29: 16.2 | C29: 22.1 | D29: 11.9 | E29: 0.2 | G29: 3.4 | H29: 1016.6 | I29: 17.6
A30: 2013-08-29 | B30: 16.9 | C30: 24.4 | D30: 9.7 | G30: 9.3 | H30: 1020.8 | I30: 17.6 | J30: BM | K30: H Gerlinde
A31: 2013-08-30 | B31: 17.9 | C31: 25.1 | D31: 10.8 | G31: 3.6 | H31: 1019.3 | I31: 17.55 | L31: Leicht schwül.
A32: 2013-08-31 | B32: 18.7 | C32: 24.3 | D32: 13.4 | E32: 0.6 | G32: 5 | H32: 1017.6 | I32: 17.5 | J32: NWz | K32: T Kasimir
A33: Durchschnitt | B33: =AVERAGE(B2:B32) -> 18.67419355 | C33: =AVERAGE(C2:C32) -> 25.26129032 | D33: =AVERAGE(D2:D32) -> 12.72580645 | H33: =AVERAGE(H2:H32) -> 1017.419355 | I33: =AVERAGE(I2:I32) -> 17.86129032
A34: Mittel | B34: 17.9 | E34: 86 | F34: - | G34: 208 | H34: 1015.6
A90: 1
A91: 2
A92: 3
A93: 4
A94: 5
A95: 6
A96: 7
A97: 8
A98: 9
A99: 10
A100: 11
A101: 12
A102: 13
A103: 14
A104: 15
A105: 16
A106: 17
A107: 18
A108: 19
A109: 20
A110: 21
A111: 22
A112: 23
A113: 24
A114: 25
A115: 26
A116: 27
A117: 28
A118: 29
A119: 30
A120: 31

Sheet Erdbodenst.
E1: Erdbodentemperatur
B5: Wetterstation: Köttewitz | F5: Monat: | G5: August | K5: Jahr: | L5: 2013
A7: Dat. | B7: 7 Uhr | C7: 8 Uhr | D7: 12 Uh | E7: 13 Uhr | F7: 20 Uhr | H7: NN
A9: 01. | B9: 18,6 °C/19,6 °C | D9: 25,8 °C/22,8 °C | F9: 23,6 °C/23,2 °C | H9: n
A10: 02. | B10: 20,4 °C/21,0 °C | D10: 32,0 °C/24,4 °C | F10: 27,0 °C/25,4 °C | H10: h | I10: 9
A11: 03. | B11: 20,8 °C/21,6 °C | D11: 31,1 °C/25,2 °C | F11: 27,6 °C/26,2 °C | H11: n | I11: 9
A12: 04. | B12: 21,2 °C/22,4 °C | D12: 32,2 °C/26,0 °C | F12: 26,2 °C/25,0 °C | H12: n
A13: 05. | B13: 20,4 °C/21,4 °C | D13: 24,8 °C/22,2 °C | F13: 24,8 °C/25,2 °C | H13: n
A14: 06. | B14: 20,6 °C/21,2 °C | D14: 29,4 °C/23,9 °C | F14: 24,0 °C/24,8 °C | H14: n
A15: 07. | B15: 20,8 °C/22,0 °C | D15: 29,0 °C/23,9 °C | F15: 24,4 °C/24,8 °C | H15: n
A16: 08. | B16: 21,6 °C/21,4 °C | D16: 25,0 °C/22,3 °C | F16: 23,8 °C/24,8 °C | H16: t
A17: 09. | B17: 20,6 °C/21,0 °C | D17: 20,0 °C/20,6 °C | F17: 19,0 °C/20,2 °C | H17: t
A18: 10. | B18: 16,2 °C/17,9 °C | D18: 23,0 °C/20,6 °C | F18: 21,4 °C722,5 °C | H18: n
A19: 11. | B19: -
A20: 12.
A21: 13.
A22: 14.
A23: 15. | I23: 9
A24: 16. | I24: 9
A25: 17. | I25: 9
A26: 18. | I26: 9
A27: 19.
A28: 20.
A29: 21.
A30: 22. | I30: 9
A31: 23. | B31: - | D31: - | F31: - | I31: 9
A32: 24. | B32: 14,6 °C/16,6 °C | D32: 25,0 °C/18,0 °C | F32: 18,2 °C/19,0 °C | H32: n | I32: 9
A33: 25. | B33: 15,4 °C/17,0 °C | D33: 22,0 °C/18,8 °C | F33: 17,4 °C/18,4 °C | H33: n
A34: 26. | B34: 15,8 °C/16,8 °C | D34: 20,4 °C/17,7 °C | F34: 17,8 °C/19,6 °C | H34: n
A35: 27. | B35: 15,0 °C/16,6 °C | D35: 21,4 °C/16,8 °C | F35: 18,0 °C/18,6 °C | H35: n | I35: 9
A36: 28. | B36: 14,6 °C/16,0 °C | D36: 22,0 °C/17,9 °C | F36: 19,6 °C/20,2 °C | H36: n | I36: 9
A37: 29. | B37: 13,2 °C/15,4 °C | D37: 24,9 °C/18,1 °C | F37: 21,0 °C/21,6 °C | H37: n | I37: 9
A38: 30. | B38: 14,9 °C/16,5 °C | D38: 24,2 °C/18,0 °C | F38: 20,5 °C/20,8 °C | H38: n | I38: 9
A39: 31. | B39: 16,2 °C/16,5 °C | D39: 23,1 °C/19,5 °C | F39: 20,0 °C/21,0 °C | H39: n | I39: 9
